bitfinex/quotes_SOLUSD_20240605
["timestamp","ask_amount","ask_price","bid_price","bid_amount"]
[1717560844509,7.15,172.79,172.77,2.1415]
[1717560844712,7.15,172.78,172.77,2.1415]
[1717560849821,7.15,172.8,172.79,2.1412]
[1717560851937,2.1409,172.83,172.79,2.1412]
[1717560852146,2.1409,172.83,172.8,2.1411]
[1717560852445,7.15,172.81,172.79,2.1412]
[1717560852617,7.15,172.8,172.79,2.1412]
[1717560853621,7.15,172.8,172.79,2.1413]
[1717560853822,7.15,172.8,172.78,2.1413]
[1717560854021,7.15,172.79,172.78,2.1413]
[1717560858841,23.6702,172.82,172.78,2.1413]
[1717560859152,7.15,172.79,172.78,2.1413]
[1717560861643,7.15,172.79,172.74,128.68511367]
[1717560861644,31.8822,172.79,172.74,4.2837]
[1717560861955,24.7322,172.78,172.74,2.1418]
[1717560862135,7.15,172.75,172.74,2.1418]
[1717560866058,7.15,172.75,172.73,2.142]
[1717560866228,7.15,172.74,172.72,10.82711367]
[1717560866424,32.7719,172.78,172.72,10.82711367]
[1717560866425,7.15,172.73,172.72,2.142]
[1717560866849,7.15,172.73,172.71,10.82731367]
[1717560867048,7.15,172.72,172.71,8.68511367]
[1717560867239,7.15,172.72,172.71,10.82731367]
[1717560869237,7.15,172.72,172.71,2.1422]
[1717560874352,7.15,172.72,172.7,2.1423]
[1717560874570,7.15,172.71,172.7,2.1423]
[1717560874860,7.15,172.71,172.7,2.1424]
[1717560875270,7.15,172.71,172.69,2.1424]
[1717560875472,7.15,172.7,172.68,4.2853]
[1717560875675,2.142,172.74,172.7,2.1423]
[1717560875971,7.15,172.71,172.7,2.1423]
[1717560876661,7.15,172.71,172.69,2.1425]
[1717560879556,7.15,172.71,172.68,2.1426]
[1717560880555,7.15,172.71,172.69,2.1425]
[1717560881560,7.15,172.7,172.69,2.1425]
[1717560883369,7.15,172.7,172.68,2.1426]
[1717560883577,7.15,172.69,172.68,2.1426]
[1717560884471,2.1421,172.73,172.69,2.1425]
[1717560884774,22.1421,172.73,172.69,2.1425]
[1717560884957,7.15,172.7,172.69,2.1425]
[1717560885564,7.15,172.7,172.68,2.1426]
[1717560885873,7.15,172.69,172.68,2.1426]
[1717560887071,22.1421,172.73,172.69,2.1425]
[1717560887278,7.15,172.7,172.69,2.1425]
[1717560887980,7.15,172.7,172.68,2.1426]
[1717560888280,7.15,172.69,172.68,2.1426]
[1717560890377,2.1422,172.72,172.68,2.1426]
[1717560890677,7.15,172.69,172.68,2.1426]
[1717560892086,7.15,172.7,172.69,2.1425]
[1717560892561,7.15,172.7,172.68,2.1426]
[1717560893182,7.15,172.69,172.68,2.1426]
[1717560898285,2.1421,172.73,172.68,120.0]
[1717560898467,20.0,172.74,172.68,120.0]
[1717560898468,7.15,172.72,172.7,2.1423]
[1717560899579,7.15,172.71,172.7,2.1423]
[1717560899784,2.1418,172.75,172.72,2.1421]
[1717560900185,7.15,172.73,172.72,2.1421]
[1717560900386,30.6104,172.82,172.7,120.0]
[1717560900569,10.7056,172.81,172.73,4.284]
[1717560900889,28.6,172.8,172.75,2.1417]
[1717560901272,2.1415,172.78,172.74,2.1418]
[1717560901585,2.1417,172.76,172.73,2.142]
[1717560901791,7.15,172.75,172.73,2.142]
[1717560902481,7.15,172.74,172.72,2.1421]
[1717560902670,7.15,172.73,172.72,2.1421]
[1717560904290,7.15,172.74,172.73,2.1419]
[1717560904494,7.15,172.75,172.73,2.1419]
[1717560904665,7.15,172.75,172.74,2.1419]
[1717560905481,7.15,172.75,172.73,2.1419]
[1717560905698,7.15,172.75,172.7,137.25698097]
[1717560905699,7.15,172.74,172.72,2.1421]
[1717560905875,7.15,172.73,172.72,2.1421]
[1717560906271,2.1416,172.77,172.72,120.0]
[1717560906594,7.15,172.76,172.74,2.1418]
[1717560907672,2.1415,172.78,172.74,122.1418]
[1717560907866,7.15,172.76,172.74,122.1418]
[1717560908198,2.1415,172.78,172.75,2.1418]
[1717560908498,7.15,172.76,172.75,2.1418]
[1717560908668,7.15,172.77,172.75,2.1418]
[1717560908871,2.1415,172.78,172.75,2.1418]
[1717560909194,7.15,172.76,172.75,2.1418]
[1717560910292,22.1413,172.79,172.75,2.1418]
[1717560910471,7.15,172.76,172.75,2.1418]
[1717560910990,2.1414,172.78,172.75,2.1418]
[1717560910991,26.6958,172.83,172.76,120.0]
[1717560911298,7.15,172.79,172.78,2.1414]
[1717560911501,2.141,172.81,172.78,2.1414]
[1717560911682,7.15,172.79,172.78,2.1414]
[1717560912067,2.141,172.81,172.78,2.1414]
[1717560912270,7.15,172.79,172.78,2.1414]
[1717560914301,7.15,172.8,172.78,2.1414]
[1717560916480,2.141,172.81,172.78,2.1414]
[1717560916681,7.15,172.8,172.78,2.1414]
[1717560917082,7.15,172.8,172.79,2.1413]
[1717560917997,7.15,172.8,172.78,2.1413]
[1717560918209,7.15,172.79,172.78,2.1413]
[1717560919503,2.1411,172.81,172.78,2.1413]
[1717560919702,7.15,172.79,172.78,2.1413]
[1717560922096,7.15,172.8,172.79,2.1413]
[1717560923176,7.15,172.8,172.78,2.1413]
[1717560923627,2.141,172.82,172.78,2.1413]
[1717560923801,7.15,172.8,172.78,2.1413]
[1717560925301,7.15,172.8,172.79,2.1413]
[1717560926201,7.15,172.8,172.78,2.1413]
[1717560927001,7.15,172.8,172.79,2.1413]
[1717560927386,7.15,172.8,172.76,130.7083]
[1717560927902,7.15,172.8,172.78,2.1413]
[1717560928075,7.15,172.8,172.79,2.1413]
[1717560928410,7.15,172.81,172.8,2.1411]
[1717560928584,7.15,172.82,172.8,2.1411]
[1717560929682,2.1407,172.84,172.8,2.1411]
[1717560929886,7.15,172.82,172.8,2.1411]
[1717560930710,2.1406,172.85,172.82,2.1409]
[1717560930886,2.1406,172.85,172.81,2.141]
[1717560931123,7.15,172.83,172.81,2.141]
[1717560933505,7.15,172.83,172.79,124.2826]
[1717560933705,7.15,172.83,172.8,2.1411]
[1717560934291,20.0,172.86,172.82,2.1409]
[1717560934485,7.15,172.83,172.81,120.0]
[1717560934686,7.15,172.83,172.81,122.1409]
[1717560935306,7.15,172.83,172.82,2.1409]
[1717560938114,7.15,172.83,172.81,122.141]
[1717560938311,7.15,172.83,172.82,2.1409]
[1717560938512,4.2802,172.89,172.83,120.0]
[1717560938726,7.15,172.86,172.84,2.1407]
[1717560938889,2.1402,172.88,172.84,2.1407]
[1717560939092,7.15,172.86,172.85,2.1405]
[1717560940205,7.15,172.86,172.84,2.1406]
[1717560942232,7.15,172.86,172.82,10.7046]
[1717560942446,7.15,172.86,172.84,2.1406]
[1717560942726,7.15,172.85,172.84,2.1406]
[1717560943729,7.15,172.85,172.83,2.1407]
[1717560943932,7.15,172.84,172.83,2.1407]
[1717560944426,7.15,172.84,172.83,2.1408]
[1717560945017,7.15,172.84,172.82,2.1409]
[1717560945228,7.15,172.83,172.81,4.2821]
[1717560945401,25.0412,172.86,172.82,2.1409]
[1717560945402,2.1406,172.85,172.82,2.1409]
[1717560945601,7.15,172.83,172.82,2.1409]
[1717560947705,22.9007,172.86,172.83,2.1408]
[1717560947901,7.15,172.84,172.83,2.1408]
[1717560948605,7.15,172.84,172.82,2.1409]
[1717560949329,7.15,172.84,172.83,2.1408]
[1717560949706,7.15,172.84,172.82,2.1408]
[1717560949919,7.15,172.83,172.82,2.1408]
[1717560950902,7.15,172.83,172.8,2.1411]
[1717560951152,7.15,172.81,172.8,2.1412]
[1717560953738,8.5555,172.85,172.81,2.141]
[1717560954034,7.15,172.82,172.81,2.141]
[1717560956228,7.15,172.82,172.8,2.1411]
[1717560956426,7.15,172.81,172.8,2.1411]
[1717560960437,6.4149,172.85,172.81,2.141]
[1717560960624,7.15,172.82,172.81,2.141]
[1717560963633,8.5555,172.85,172.8,120.0]
[1717560963842,2.1406,172.85,172.82,2.1409]
[1717560964047,22.1405,172.86,172.82,2.1409]
[1717560964249,7.15,172.83,172.82,2.1409]
[1717560965610,7.15,172.83,172.81,2.141]
[1717560968941,2.1406,172.85,172.81,2.141]
[1717560969149,7.15,172.82,172.81,2.141]
[1717560969645,2.1406,172.85,172.81,2.141]
[1717560969825,7.15,172.82,172.81,2.141]
[1717560971247,2.1407,172.84,172.81,2.141]
[1717560971448,2.1406,172.85,172.82,2.1408]
[1717560971626,7.15,172.83,172.81,2.141]
[1717560971950,7.15,172.82,172.81,2.141]
[1717560972323,2.1406,172.85,172.82,2.1409]
[1717560972727,7.15,172.83,172.82,2.1409]
[1717560972925,7.15,172.83,172.81,2.141]
[1717560973448,7.15,172.83,172.8,120.0]
[1717560973749,7.15,172.83,172.81,2.141]
[1717560976252,7.15,172.83,172.8,122.1411]
[1717560976544,7.15,172.82,172.8,122.1411]
[1717560976751,7.15,172.81,172.8,122.1411]
[1717560977140,7.15,172.81,172.8,2.1411]
[1717560977450,7.15,172.81,172.79,2.1412]
[1717560977636,7.15,172.8,172.79,2.1412]
[1717560977838,7.15,172.8,172.79,2.4812]
[1717560979346,7.15,172.8,172.79,2.1412]
[1717560979554,2.1407,172.84,172.8,2.1411]
[1717560979724,7.15,172.81,172.8,2.1411]
[1717560982071,22.5723,172.86,172.79,14.9889]
[1717560982245,7.15,172.81,172.8,2.1412]
[1717560982668,7.15,172.81,172.78,120.0]
[1717560982844,7.15,172.8,172.79,2.1413]
[1717560984536,2.1407,172.84,172.78,130.7071]
[1717560984836,7.15,172.8,172.79,2.1413]
[1717560985034,2.1407,172.84,172.78,130.7071]
[1717560985238,7.15,172.8,172.79,6.4239]
[1717560985562,22.1406,172.85,172.79,6.4239]
[1717560985563,7.15,172.81,172.8,2.1412]
[1717560986848,5.15,172.81,172.8,2.1412]
[1717560988752,22.1406,172.85,172.79,4.2826]
[1717560988753,22.1406,172.85,172.81,2.1409]
[1717560988961,7.15,172.82,172.81,2.1409]
[1717560991205,2.1407,172.84,172.81,2.1409]
[1717560991393,22.1406,172.85,172.81,2.1409]
[1717560991695,22.1406,172.85,172.82,2.1409]
[1717560991990,7.15,172.83,172.82,2.1409]
[1717560992279,7.15,172.83,172.81,2.141]
[1717560992476,2.1404,172.86,172.8,126.4235]
[1717560992682,4.2804,172.88,172.83,2.1407]
[1717560992868,7.15,172.84,172.83,2.1407]
[1717560995080,2.1404,172.87,172.83,2.1407]
[1717560995385,7.15,172.84,172.83,2.1407]
[1717560995676,2.1404,172.87,172.83,2.1407]
[1717560996069,7.15,172.85,172.83,2.1407]
[1717560997180,7.15,172.84,172.83,2.1407]
[1717560997485,7.15,172.84,172.82,122.1408]
[1717560997861,7.15,172.84,172.83,2.1408]
[1717561000189,2.1404,172.87,172.83,2.1408]
[1717561000490,7.15,172.84,172.83,2.1408]
[1717561000794,2.1404,172.87,172.84,2.1406]
[1717561000962,7.15,172.85,172.84,2.1406]
[1717561001688,7.15,172.85,172.82,126.4227]
[1717561001689,9.2906,172.85,172.82,120.0]
[1717561001988,7.15,172.83,172.8,120.0]
[1717561002189,7.15,172.82,172.81,2.141]
[1717561003292,7.15,172.82,172.81,6.4231]
[1717561003776,7.15,172.83,172.82,2.1409]
[1717561006373,28.6,172.89,172.85,2.1405]
[1717561006579,7.15,172.86,172.85,2.1405]
[1717561006969,7.15,172.86,172.84,2.1406]
[1717561007791,7.15,172.86,172.85,2.1405]
[1717561009894,7.15,172.86,172.84,2.1406]
[1717561010089,7.15,172.85,172.84,2.1406]
[1717561010298,7.15,172.85,172.82,4.2818]
[1717561010467,7.15,172.83,172.82,6.4227]
[1717561013099,7.15,172.83,172.82,12.8455]
[1717561014095,21.2354,172.88,172.85,2.1405]
[1717561014396,7.15,172.86,172.85,2.1405]
[1717561015494,7.15,172.86,172.84,2.1406]
[1717561018706,7.15,172.86,172.85,2.1405]
[1717561019901,7.15,172.86,172.84,2.1406]
[1717561021600,7.15,172.85,172.84,2.1406]
[1717561025605,2.1402,172.88,172.84,2.1406]
[1717561025899,22.1402,172.88,172.84,2.1406]
[1717561028506,20.0,172.88,172.84,2.1406]
[1717561028684,22.1403,172.88,172.84,2.1406]
[1717561030208,2.1401,172.89,172.86,2.1404]
[1717561030391,7.15,172.87,172.85,2.1405]
[1717561030591,7.15,172.86,172.85,2.1405]
[1717561033721,2.1401,172.89,172.85,2.1405]
[1717561034020,7.15,172.86,172.85,2.1405]
[1717561037619,7.15,172.86,172.84,122.1406]
[1717561037821,7.15,172.85,172.84,122.1406]
[1717561038804,7.15,172.85,172.84,2.1406]
[1717561039399,9.2901,172.89,172.85,2.1405]
[1717561039599,7.15,172.86,172.85,2.1405]
[1717561040312,22.14,172.9,172.86,2.1404]
[1717561040624,2.1399,172.9,172.87,2.1402]
[1717561040827,7.15,172.88,172.87,2.1402]
[1717561041010,7.15,172.88,172.86,2.1403]
[1717561041210,7.15,172.87,172.86,2.1403]
[1717561044530,7.15,172.87,172.86,122.1403]
[1717561045213,6.3742,172.93,172.86,134.9828]
[1717561045542,6.3742,172.93,172.88,122.14]
[1717561045719,7.15,172.89,172.88,122.14]
[1717561048011,2.1397,172.92,172.88,122.14]
[1717561048335,7.15,172.89,172.88,122.14]
[1717561050737,22.0189,172.97,172.88,130.7005]
[1717561050911,7.15,172.91,172.9,2.1398]
[1717561052042,7.15,172.91,172.89,2.14]
[1717561052246,7.15,172.9,172.89,2.14]
[1717561052617,2.1395,172.94,172.91,2.1398]
[1717561052932,2.1394,172.94,172.91,2.1398]
[1717561053106,7.15,172.92,172.91,2.1398]
[1717561054533,7.15,172.92,172.9,122.1399]
[1717561054833,7.15,172.91,172.9,122.1399]
[1717561055237,7.15,172.91,172.9,122.3099]
[1717561056859,7.15,172.91,172.9,2.3099]
[1717561058026,2.1394,172.94,172.91,2.1398]
[1717561058357,7.15,172.92,172.91,2.1398]
[1717561059025,7.15,172.92,172.9,2.3098]
[1717561059221,7.15,172.91,172.9,2.3098]
[1717561059550,7.15,172.91,172.9,2.1398]
[1717561060051,7.15,172.91,172.89,2.14]
[1717561060253,7.15,172.9,172.89,2.14]
[1717561060747,9.29,172.9,172.88,380.3]
[1717561060951,7.15,172.89,172.88,380.3]
[1717561061430,7.15,172.89,172.86,2.1404]
[1717561061623,7.15,172.87,172.86,2.1404]
[1717561062931,7.15,172.87,172.83,38.28077892]
[1717561063155,7.15,172.87,172.8,386.7799]
[1717561063156,7.15,172.84,172.82,2.1408]
[1717561063355,7.15,172.83,172.82,2.1409]
[1717561064853,7.15,172.83,172.82,27.57707892]
[1717561065043,2.1402,172.88,172.82,4.2819]
[1717561065238,7.15,172.83,172.82,6.4228]
[1717561065640,7.15,172.83,172.82,31.85897892]
[1717561065857,7.15,172.83,172.82,6.4228]
[1717561066369,7.15,172.83,172.82,31.85897892]
[1717561066753,7.15,172.83,172.82,6.4228]
[1717561068779,7.15,172.83,172.82,2.1409]
[1717561072488,7.15,172.83,172.8,2.1411]
[1717561072791,7.15,172.81,172.8,2.1411]
[1717561074496,7.15,172.81,172.79,4.2825]
[1717561074497,7.15,172.81,172.77,128.5658]
[1717561074660,7.15,172.81,172.8,2.1412]
[1717561077085,7.15,172.81,172.79,2.1412]
[1717561077664,7.15,172.81,172.8,2.1412]
[1717561080481,2.1407,172.84,172.81,2.141]
[1717561080781,7.15,172.83,172.81,120.0]
[1717561080985,2.1405,172.86,172.81,120.0]
[1717561081184,7.15,172.83,172.82,2.1409]
[1717561083457,7.15,172.83,172.81,2.141]
[1717561084177,7.15,172.82,172.81,2.141]
[1717561084375,7.15,172.82,172.77,500.3]
[1717561084593,2.1409,172.83,172.79,2.1412]
[1717561084768,7.15,172.8,172.79,2.1412]
[1717561087584,2.1407,172.84,172.8,2.1411]
[1717561087889,7.15,172.81,172.8,2.1411]
[1717561090691,7.15,172.81,172.77,6.4246]
[1717561090893,2.1409,172.82,172.78,2.1413]
[1717561091108,24.134,172.83,172.79,2.1413]
[1717561091273,7.15,172.8,172.79,2.1413]
[1717561094388,7.15,172.8,172.79,2.1413]
[1717561096407,23.0193,172.8,172.76,2.1416]
[1717561096577,7.15,172.77,172.76,2.1416]
[1717561096777,7.15,172.77,172.75,2.1417]
[1717561097000,7.15,172.77,172.76,2.1416]
[1717561097891,7.15,172.77,172.75,2.1417]
[1717561098090,7.15,172.76,172.75,2.1417]
[1717561098270,7.15,172.76,172.74,2.1418]
[1717561098474,7.15,172.75,172.74,2.1418]
[1717561108305,2.1414,172.79,172.74,2.1418]
[1717561108508,7.15,172.76,172.75,2.1418]
[1717561110605,2.1413,172.79,172.75,2.1418]
[1717561110817,7.15,172.76,172.75,2.1418]
[1717561116014,7.15,172.76,172.74,122.1418]
[1717561116218,2.1414,172.78,172.74,122.1418]
[1717561116219,7.15,172.75,172.74,122.1418]
[1717561116586,7.15,172.75,172.74,2.1418]
[1717561118023,7.15,172.75,172.74,122.1418]
[1717561118191,50.7412,172.8,172.76,2.1416]
[1717561118394,22.1412,172.8,172.76,2.1416]
[1717561118619,7.15,172.77,172.76,2.1416]
[1717561118912,7.15,172.77,172.75,2.1417]
[1717561119215,7.15,172.76,172.75,2.1417]
[1717561123019,7.15,172.76,172.74,2.1419]
[1717561123187,7.15,172.75,172.74,2.1419]
[1717561126994,23.9952,172.79,172.75,2.1418]
[1717561127311,7.15,172.76,172.74,2.1418]
[1717561127517,7.15,172.75,172.74,2.1418]
[1717561131129,21.8538,172.79,172.73,120.0]
[1717561131305,20.0,172.81,172.77,2.1415]
[1717561131497,7.15,172.78,172.76,2.1416]
[1717561132322,7.15,172.77,172.76,2.1416]
[1717561132621,7.15,172.77,172.75,2.1417]
[1717561132814,7.15,172.76,172.75,2.1417]
[1717561133704,7.15,172.76,172.74,2.1418]
[1717561133902,7.15,172.75,172.74,1.6418]
[1717561140331,7.15,172.75,172.74,3.16753994]
[1717561146044,2.1414,172.78,172.74,3.16753994]
[1717561146045,6.3737,172.78,172.74,1.52573994]
[1717561146207,7.15,172.75,172.72,2.1421]
[1717561146406,6.5808,172.75,172.73,1.52589812]
[1717561146630,7.15,172.74,172.71,122.1422]
[1717561146842,8.7226,172.75,172.72,1.52610654]
[1717561147013,7.15,172.73,172.71,122.1422]
[1717561147218,6.5808,172.75,172.72,1.52615155]
[1717561147412,7.15,172.73,172.71,120.0]
[1717561147727,7.15,172.72,172.71,120.0]
[1717561147926,7.15,172.72,172.71,121.52637809]
[1717561148137,7.15,172.72,172.71,120.0]
[1717561148938,7.15,172.72,172.71,122.1423]
[1717561149141,21.8335,172.77,172.73,2.1419]
[1717561149309,21.8918,172.79,172.74,2.1418]
[1717561149509,7.15,172.75,172.74,2.1418]
[1717561149711,7.15,172.75,172.73,2.1419]
[1717561149931,7.15,172.74,172.73,2.1419]
[1717561150316,7.15,172.74,172.72,2.1421]
[1717561150517,7.15,172.73,172.72,2.1421]
[1717561150707,7.15,172.73,172.71,122.1422]
[1717561150932,7.15,172.72,172.71,122.1422]
[1717561151452,2.1416,172.77,172.73,2.142]
[1717561151614,7.15,172.74,172.73,2.142]
[1717561153637,7.15,172.74,172.72,2.1421]
[1717561154051,2.1415,172.77,172.72,2.1421]
[1717561154237,7.15,172.73,172.72,2.1421]
[1717561155270,2.1415,172.77,172.73,2.142]
[1717561155438,7.15,172.74,172.72,2.1421]
[1717561155764,7.15,172.73,172.72,2.1421]
[1717561156070,7.15,172.73,172.71,2.1422]
[1717561156238,7.15,172.72,172.71,2.1422]
[1717561156556,7.15,172.72,172.71,3.66831652]
[1717561157635,7.15,172.72,172.71,2.1422]
[1717561160059,7.15,172.72,172.71,3.66822002]
[1717561160631,6.2884,172.76,172.73,2.1419]
[1717561160837,7.15,172.74,172.72,2.1421]
[1717561161065,7.15,172.73,172.69,19.2824]
[1717561161248,23.5431,172.76,172.72,2.1421]
[1717561161575,7.15,172.73,172.72,2.1421]
[1717561161782,7.15,172.73,172.71,2.1422]
[1717561162064,7.15,172.72,172.71,2.1422]
[1717561163348,23.5431,172.76,172.72,2.1421]
[1717561163565,7.15,172.73,172.71,2.1423]
[1717561163773,7.15,172.72,172.71,2.1423]
[1717561165161,21.4014,172.76,172.72,2.1421]
[1717561165542,7.15,172.73,172.72,2.1421]
[1717561167140,7.15,172.73,172.71,2.1422]
[1717561167340,7.15,172.72,172.71,2.1422]
[1717561184280,22.1415,172.78,172.71,110.26732604]
[1717561184449,22.5322,172.78,172.74,2.1418]
[1717561184652,7.15,172.75,172.73,2.142]
[1717561184846,7.15,172.74,172.73,2.142]
[1717561186064,22.1415,172.77,172.72,2.1421]
[1717561186256,7.15,172.73,172.72,2.1421]
[1717561188362,2.1417,172.76,172.72,2.1421]
[1717561188681,7.15,172.73,172.72,2.1421]
[1717561188978,7.15,172.73,172.72,3.6681819]
[1717561190251,2.1417,172.76,172.72,3.6681819]
[1717561190450,7.15,172.73,172.72,2.1421]
[1717561190760,20.0,172.77,172.73,2.1419]
[1717561190973,22.1415,172.77,172.73,2.1419]
[1717561191177,22.1415,172.77,172.72,2.1421]
[1717561191483,7.15,172.73,172.72,2.1421]
[1717561192080,7.15,172.73,172.72,3.66819607]
[1717561192303,7.15,172.74,172.72,3.66819607]
[1717561192488,7.15,172.74,172.72,2.1421]
[1717561193894,7.15,172.73,172.72,2.1421]
[1717561194086,7.15,172.73,172.72,3.66819421]
[1717561195583,7.15,172.73,172.72,1.52609421]
[1717561195750,7.15,172.73,172.72,3.66819421]
[1717561198478,7.15,172.73,172.72,2.1421]
[1717561199685,7.15,172.73,172.72,3.6682762]
[1717561199977,7.15,172.73,172.72,2.1421]
[1717561200181,7.15,172.73,172.72,3.66831985]
[1717561200557,7.15,172.73,172.72,2.1421]
[1717561202487,7.15,172.73,172.71,2.1422]
[1717561202667,7.15,172.72,172.71,2.1422]
[1717561202977,7.15,172.72,172.71,3.66844793]
[1717561205675,20.0,172.77,172.75,2.1418]
[1717561205875,2.1412,172.8,172.73,139.2783]
[1717561206189,7.15,172.78,172.77,2.1415]
[1717561206405,21.508,172.82,172.78,2.1414]
[1717561206568,21.508,172.82,172.79,2.1413]
[1717561206884,21.508,172.82,172.78,2.1414]
[1717561207092,7.15,172.79,172.76,2.1416]
[1717561207388,7.15,172.77,172.76,2.1416]
[1717561208083,23.649,172.82,172.77,2.1415]
[1717561208384,4.2812,172.85,172.73,19.2781]
[1717561208385,7.15,172.78,172.73,124.284]
[1717561208589,7.15,172.77,172.75,2.1417]
[1717561208967,7.15,172.77,172.76,2.1416]
[1717561213386,2.1409,172.82,172.77,2.1415]
[1717561213771,7.15,172.78,172.77,2.1415]
[1717561215474,7.15,172.78,172.76,2.1416]
[1717561215774,9.2915,172.77,172.71,120.0]
[1717561215976,7.15,172.72,172.71,2.1422]
[1717561216292,9.2922,172.72,172.67,502.4427]
[1717561216495,7.15,172.68,172.66,2.1428]
[1717561216665,7.15,172.67,172.66,2.1428]
[1717561216872,7.15,172.67,172.64,132.8586]
[1717561216873,7.15,172.67,172.63,4.2865]
[1717561217090,2.1425,172.69,172.64,2.1431]
[1717561217295,7.15,172.65,172.64,2.1431]
[1717561218263,7.15,172.65,172.61,9.387892]
[1717561218264,22.305,172.69,172.61,0.813692]
[1717561218470,22.1427,172.68,172.63,2.1432]
[1717561218664,7.15,172.64,172.62,2.1433]
[1717561218891,7.15,172.63,172.62,2.1433]
[1717561219306,28.1473,172.68,172.63,2.1432]
[1717561219471,7.15,172.64,172.63,2.1432]
[1717561220203,6.0046,172.68,172.63,2.1432]
[1717561220395,7.15,172.64,172.63,2.1432]
[1717561220578,6.0046,172.68,172.63,2.1432]
[1717561220776,7.15,172.64,172.63,2.1432]
[1717561221575,22.1424,172.7,172.65,2.1429]
[1717561221774,7.15,172.67,172.66,2.1429]
[1717561222104,7.15,172.67,172.66,32.1429]
[1717561222306,20.0,172.7,172.66,32.1429]
[1717561222511,7.15,172.68,172.66,32.1429]
[1717561222681,22.1423,172.71,172.66,32.1429]
[1717561223007,7.15,172.68,172.66,32.1429]
[1717561223375,7.15,172.68,172.66,30.0]
[1717561223583,15.3116,172.75,172.66,138.91082031]
[1717561223925,7.15,172.7,172.68,2.1425]
[1717561224074,7.15,172.7,172.69,2.1425]
[1717561224488,7.15,172.7,172.68,30.0]
[1717561224702,31.5359,172.69,172.68,30.0]
[1717561225679,31.5359,172.69,172.63,2.1432]
[1717561225879,24.3859,172.69,172.64,2.1431]
[1717561226086,7.15,172.65,172.64,2.1431]
[1717561227900,7.15,172.65,172.61,120.44211231]
[1717561227901,7.15,172.65,172.63,2.1432]
[1717561228103,2.1427,172.68,172.63,2.1433]
[1717561228104,7.15,172.64,172.63,2.1433]
[1717561228703,7.15,172.64,172.61,0.813692]
[1717561228880,7.15,172.62,172.61,2.957092]
[1717561231080,7.15,172.62,172.61,0.813692]
[1717561231288,36.6478,172.62,172.61,0.813692]
[1717561231487,38.7912,172.62,172.61,0.813692]
[1717561231711,29.4978,172.62,172.61,0.813692]
[1717561231985,13.7362,172.62,172.61,0.813692]
[1717561232212,7.15,172.62,172.61,0.813692]
[1717561233313,2.1433,172.63,172.61,0.813692]
[1717561233625,7.15,172.62,172.61,0.813692]
[1717561235019,2.143,172.66,172.61,0.813692]
[1717561235199,7.15,172.62,172.61,0.813692]